{"text_format":"1","workbook":"xlsx","n_sheets":2,"sheets":["Sheet2","Sheet1"],"not_rendered":{"charts":0,"images":5,"macros":1,"external_links":0,"defined_names":0,"comments":0,"pivot_tables":0},"unopened":[],"bounds":{"document_bytes":16777216,"sheet_cells":100000,"rows_first":2000,"rows_last":500,"rows_between":2000,"halvings":0,"cell_chars":16384,"cell_head_chars":4096},"cells_cut":0,"cells_raw":0,"read":"whole","date_system":"1900"}

{"sheet":"Sheet2","index":0,"n_rows":496,"n_cols":15,"rows_kept":496,"cut":false,"hidden":false,"merged":[[0,1,0,10]]}
[null,null,null,null,null,null,null,null,null,null,null,null,null,"الاسم","رقم الصف"]
["الكود","الاسم","اسم العروسه","رقم الهاتف","تاريخ الحجز","عدد الاشخاص","سعر الشخص","اجمالى المبلغ","مقدم الحجز","دفعات مسدده","المتبقي","القاعه","الخدمه","كريم",{"$f":"MATCH(N2,B:B,0)","v":6}]
[{"$f":"IF(B3=\"\",\"\",ROW()-2)","v":1},"احمد","صفاء","0123333564","2022-07-16",200,350,{"$f":"G3*F3","v":70000},5000,5000,{"$f":"H3-I3-J3","v":60000},4,"خدمه"]
[2,"محمود","منال","01012121211","2022-07-01",100,500,50000,10000,null,40000,2,"خدمه"]
[3,"مصطفى","ساره","01111111236","2022-07-01",300,300,90000,15000,25000,50000,7,"بدون خدمه"]
[4,"كريم","مريم","0151111325","2022-09-01",250,400,100000,15000,25000,60000,5,"خدمه"]
["",null,null,"",null,null,null,0,null,null,0]
["",null,null,null,null,null,null,0,null,null,0]
["",null,null,null,null,null,null,0,null,null,0]
["",null,null,null,null,null,null,0,null,null,0]
["",null,null,null,null,null,null,0,null,null,0]
["",null,null,null,null,null,null,0,null,null,0]
["",null,null,null,null,null,null,0,null,null,0]
["",null,null,null,null,null,null,0,null,null,0]
["",null,null,null,null,null,null,0,null,null,0]
["",null,null,null,null,null,null,0,null,null,0]
["",null,null,null,null,null,null,0,null,null,0]
["",null,null,null,null,null,null,0,null,null,0]
["",null,null,null,null,null,null,0,null,null,0]
["",null,null,null,null,null,null,0,null,null,0]
["",null,null,null,null,null,null,0,null,null,0]
["",null,null,null,null,null,null,0,null,null,0]
["",null,null,null,null,null,null,0,null,null,0]
["",null,null,null,null,null,null,0,null,null,0]
["",null,null,null,null,null,null,0,null,null,0]
["",null,null,null,null,null,null,0,null,null,0]
["",null,null,null,null,null,null,0,null,null,0]
["",null,null,null,null,null,null,0,null,null,0]
["",null,null,null,null,null,null,0,null,null,0]
["",null,null,null,null,null,null,0,null,null,0]
["",null,null,null,null,null,null,0,null,null,0]
["",null,null,null,null,null,null,0,null,null,0]
["",null,null,null,null,null,null,0,null,null,0]
["",null,null,null,null,null,null,0,null,null,0]
["",null,null,null,null,null,null,0,null,null,0]
["",null,null,null,null,null,null,0,null,null,0]
["",null,null,null,null,null,null,0,null,null,0]
["",null,null,null,null,null,null,0,null,null,0]
["",null,null,null,null,null,null,0,null,null,0]
["",null,null,null,null,null,null,0,null,null,0]
["",null,null,null,null,null,null,0,null,null,0]
["",null,null,null,null,null,null,0,null,null,0]
["",null,null,null,null,null,null,0,null,null,0]
["",null,null,null,null,null,null,0,null,null,0]
["",null,null,null,null,null,null,0,null,null,0]
["",null,null,null,null,null,null,0,null,null,0]
["",null,null,null,null,null,null,0,null,null,0]
["",null,null,null,null,null,null,0,null,null,0]
["",null,null,null,null,null,null,0,null,null,0]
["",null,null,null,null,null,null,0,null,null,0]
["",null,null,null,null,null,null,0,null,null,0]
["",null,null,null,null,null,null,0,null,null,0]
["",null,null,null,null,null,null,0,null,null,0]
["",null,null,null,null,null,null,0,null,null,0]
["",null,null,null,null,null,null,0,null,null,0]
["",null,null,null,null,null,null,0,null,null,0]
["",null,null,null,null,null,null,0,null,null,0]
["",null,null,null,null,null,null,0,null,null,0]
["",null,null,null,null,null,null,0,null,null,0]
["",null,null,null,null,null,null,0,null,null,0]
["",null,null,null,null,null,null,0,null,null,0]
["",null,null,null,null,null,null,0,null,null,0]
[{"$f":"IF(B63=\"\",\"\",ROW()-2)","v":""},null,null,null,null,null,null,{"$f":"G63*F63","v":0},null,null,0]
["",null,null,null,null,null,null,0,null,null,0]
["",null,null,null,null,null,null,0,null,null,{"$f":"H65-I65-J65","v":0}]
["",null,null,null,null,null,null,0,null,null,0]
["",null,null,null,null,null,null,0,null,null,0]
["",null,null,null,null,null,null,0,null,null,0]
["",null,null,null,null,null,null,0,null,null,0]
["",null,null,null,null,null,null,0,null,null,0]
["",null,null,null,null,null,null,0,null,null,0]
["",null,null,null,null,null,null,0,null,null,0]
["",null,null,null,null,null,null,0,null,null,0]
["",null,null,null,null,null,null,0,null,null,0]
["",null,null,null,null,null,null,0,null,null,0]
["",null,null,null,null,null,null,0,null,null,0]
["",null,null,null,null,null,null,0,null,null,0]
["",null,null,null,null,null,null,0,null,null,0]
["",null,null,null,null,null,null,0,null,null,0]
["",null,null,null,null,null,null,0,null,null,0]
["",null,null,null,null,null,null,0,null,null,0]
["",null,null,null,null,null,null,0,null,null,0]
["",null,null,null,null,null,null,0,null,null,0]
["",null,null,null,null,null,null,0,null,null,0]
["",null,null,null,null,null,null,0,null,null,0]
["",null,null,null,null,null,null,0,null,null,0]
["",null,null,null,null,null,null,0,null,null,0]
["",null,null,null,null,null,null,0,null,null,0]
["",null,null,null,null,null,null,0,null,null,0]
["",null,null,null,null,null,null,0,null,null,0]
["",null,null,null,null,null,null,0,null,null,0]
["",null,null,null,null,null,null,0,null,null,0]
["",null,null,null,null,null,null,0,null,null,0]
["",null,null,null,null,null,null,0,null,null,0]
["",null,null,null,null,null,null,0,null,null,0]
["",null,null,null,null,null,null,0,null,null,0]
["",null,null,null,null,null,null,0,null,null,0]
["",null,null,null,null,null,null,0,null,null,0]
["",null,null,null,null,null,null,0,null,null,0]
["",null,null,null,null,null,null,0,null,null,0]
["",null,null,null,null,null,null,0,null,null,0]
["",null,null,null,null,null,null,0,null,null,0]
["",null,null,null,null,null,null,0,null,null,0]
["",null,null,null,null,null,null,0,null,null,0]
["",null,null,null,null,null,null,0,null,null,0]
["",null,null,null,null,null,null,0,null,null,0]
["",null,null,null,null,null,null,0,null,null,0]
["",null,null,null,null,null,null,0,null,null,0]
["",null,null,null,null,null,null,0,null,null,0]
["",null,null,null,null,null,null,0,null,null,0]
["",null,null,null,null,null,null,0,null,null,0]
["",null,null,null,null,null,null,0,null,null,0]
["",null,null,null,null,null,null,0,null,null,0]
["",null,null,null,null,null,null,0,null,null,0]
["",null,null,null,null,null,null,0,null,null,0]
["",null,null,null,null,null,null,0,null,null,0]
["",null,null,null,null,null,null,0,null,null,0]
["",null,null,null,null,null,null,0,null,null,0]
["",null,null,null,null,null,null,0,null,null,0]
["",null,null,null,null,null,null,0,null,null,0]
["",null,null,null,null,null,null,0,null,null,0]
["",null,null,null,null,null,null,0,null,null,0]
["",null,null,null,null,null,null,0,null,null,0]
["",null,null,null,null,null,null,0,null,null,0]
["",null,null,null,null,null,null,0,null,null,0]
["",null,null,null,null,null,null,0,null,null,0]
[{"$f":"IF(B127=\"\",\"\",ROW()-2)","v":""},null,null,null,null,null,null,{"$f":"G127*F127","v":0},null,null,0]
["",null,null,null,null,null,null,0,null,null,0]
["",null,null,null,null,null,null,0,null,null,{"$f":"H129-I129-J129","v":0}]
["",null,null,null,null,null,null,0,null,null,0]
["",null,null,null,null,null,null,0,null,null,0]
["",null,null,null,null,null,null,0,null,null,0]
["",null,null,null,null,null,null,0,null,null,0]
["",null,null,null,null,null,null,0,null,null,0]
["",null,null,null,null,null,null,0,null,null,0]
["",null,null,null,null,null,null,0,null,null,0]
["",null,null,null,null,null,null,0,null,null,0]
["",null,null,null,null,null,null,0,null,null,0]
["",null,null,null,null,null,null,0,null,null,0]
["",null,null,null,null,null,null,0,null,null,0]
["",null,null,null,null,null,null,0,null,null,0]
["",null,null,null,null,null,null,0,null,null,0]
["",null,null,null,null,null,null,0,null,null,0]
["",null,null,null,null,null,null,0,null,null,0]
["",null,null,null,null,null,null,0,null,null,0]
["",null,null,null,null,null,null,0,null,null,0]
["",null,null,null,null,null,null,0,null,null,0]
["",null,null,null,null,null,null,0,null,null,0]
["",null,null,null,null,null,null,0,null,null,0]
["",null,null,null,null,null,null,0,null,null,0]
["",null,null,null,null,null,null,0,null,null,0]
["",null,null,null,null,null,null,0,null,null,0]
["",null,null,null,null,null,null,0,null,null,0]
["",null,null,null,null,null,null,0,null,null,0]
["",null,null,null,null,null,null,0,null,null,0]
["",null,null,null,null,null,null,0,null,null,0]
["",null,null,null,null,null,null,0,null,null,0]
["",null,null,null,null,null,null,0,null,null,0]
["",null,null,null,null,null,null,0,null,null,0]
["",null,null,null,null,null,null,0,null,null,0]
["",null,null,null,null,null,null,0,null,null,0]
["",null,null,null,null,null,null,0,null,null,0]
["",null,null,null,null,null,null,0,null,null,0]
["",null,null,null,null,null,null,0,null,null,0]
["",null,null,null,null,null,null,0,null,null,0]
["",null,null,null,null,null,null,0,null,null,0]
["",null,null,null,null,null,null,0,null,null,0]
["",null,null,null,null,null,null,0,null,null,0]
["",null,null,null,null,null,null,0,null,null,0]
["",null,null,null,null,null,null,0,null,null,0]
["",null,null,null,null,null,null,0,null,null,0]
["",null,null,null,null,null,null,0,null,null,0]
["",null,null,null,null,null,null,0,null,null,0]
["",null,null,null,null,null,null,0,null,null,0]
["",null,null,null,null,null,null,0,null,null,0]
["",null,null,null,null,null,null,0,null,null,0]
["",null,null,null,null,null,null,0,null,null,0]
["",null,null,null,null,null,null,0,null,null,0]
["",null,null,null,null,null,null,0,null,null,0]
["",null,null,null,null,null,null,0,null,null,0]
["",null,null,null,null,null,null,0,null,null,0]
["",null,null,null,null,null,null,0,null,null,0]
["",null,null,null,null,null,null,0,null,null,0]
["",null,null,null,null,null,null,0,null,null,0]
["",null,null,null,null,null,null,0,null,null,0]
["",null,null,null,null,null,null,0,null,null,0]
["",null,null,null,null,null,null,0,null,null,0]
["",null,null,null,null,null,null,0,null,null,0]
["",null,null,null,null,null,null,0,null,null,0]
["",null,null,null,null,null,null,0,null,null,0]
[{"$f":"IF(B191=\"\",\"\",ROW()-2)","v":""},null,null,null,null,null,null,{"$f":"G191*F191","v":0},null,null,0]
["",null,null,null,null,null,null,0,null,null,0]
["",null,null,null,null,null,null,0,null,null,{"$f":"H193-I193-J193","v":0}]
["",null,null,null,null,null,null,0,null,null,0]
["",null,null,null,null,null,null,0,null,null,0]
["",null,null,null,null,null,null,0,null,null,0]
["",null,null,null,null,null,null,0,null,null,0]
["",null,null,null,null,null,null,0,null,null,0]
["",null,null,null,null,null,null,0,null,null,0]
["",null,null,null,null,null,null,0,null,null,0]
["",null,null,null,null,null,null,0,null,null,0]
["",null,null,null,null,null,null,0,null,null,0]
["",null,null,null,null,null,null,0,null,null,0]
["",null,null,null,null,null,null,0,null,null,0]
["",null,null,null,null,null,null,0,null,null,0]
["",null,null,null,null,null,null,0,null,null,0]
["",null,null,null,null,null,null,0,null,null,0]
["",null,null,null,null,null,null,0,null,null,0]
["",null,null,null,null,null,null,0,null,null,0]
["",null,null,null,null,null,null,0,null,null,0]
["",null,null,null,null,null,null,0,null,null,0]
["",null,null,null,null,null,null,0,null,null,0]
["",null,null,null,null,null,null,0,null,null,0]
["",null,null,null,null,null,null,0,null,null,0]
["",null,null,null,null,null,null,0,null,null,0]
["",null,null,null,null,null,null,0,null,null,0]
["",null,null,null,null,null,null,0,null,null,0]
["",null,null,null,null,null,null,0,null,null,0]
["",null,null,null,null,null,null,0,null,null,0]
["",null,null,null,null,null,null,0,null,null,0]
["",null,null,null,null,null,null,0,null,null,0]
["",null,null,null,null,null,null,0,null,null,0]
["",null,null,null,null,null,null,0,null,null,0]
["",null,null,null,null,null,null,0,null,null,0]
["",null,null,null,null,null,null,0,null,null,0]
["",null,null,null,null,null,null,0,null,null,0]
["",null,null,null,null,null,null,0,null,null,0]
["",null,null,null,null,null,null,0,null,null,0]
["",null,null,null,null,null,null,0,null,null,0]
["",null,null,null,null,null,null,0,null,null,0]
["",null,null,null,null,null,null,0,null,null,0]
["",null,null,null,null,null,null,0,null,null,0]
["",null,null,null,null,null,null,0,null,null,0]
["",null,null,null,null,null,null,0,null,null,0]
["",null,null,null,null,null,null,0,null,null,0]
["",null,null,null,null,null,null,0,null,null,0]
["",null,null,null,null,null,null,0,null,null,0]
["",null,null,null,null,null,null,0,null,null,0]
["",null,null,null,null,null,null,0,null,null,0]
["",null,null,null,null,null,null,0,null,null,0]
["",null,null,null,null,null,null,0,null,null,0]
["",null,null,null,null,null,null,0,null,null,0]
["",null,null,null,null,null,null,0,null,null,0]
["",null,null,null,null,null,null,0,null,null,0]
["",null,null,null,null,null,null,0,null,null,0]
["",null,null,null,null,null,null,0,null,null,0]
["",null,null,null,null,null,null,0,null,null,0]
["",null,null,null,null,null,null,0,null,null,0]
["",null,null,null,null,null,null,0,null,null,0]
["",null,null,null,null,null,null,0,null,null,0]
["",null,null,null,null,null,null,0,null,null,0]
["",null,null,null,null,null,null,0,null,null,0]
["",null,null,null,null,null,null,0,null,null,0]
["",null,null,null,null,null,null,0,null,null,0]
[{"$f":"IF(B255=\"\",\"\",ROW()-2)","v":""},null,null,null,null,null,null,{"$f":"G255*F255","v":0},null,null,0]
["",null,null,null,null,null,null,0,null,null,0]
["",null,null,null,null,null,null,0,null,null,{"$f":"H257-I257-J257","v":0}]
["",null,null,null,null,null,null,0,null,null,0]
["",null,null,null,null,null,null,0,null,null,0]
["",null,null,null,null,null,null,0,null,null,0]
["",null,null,null,null,null,null,0,null,null,0]
["",null,null,null,null,null,null,0,null,null,0]
["",null,null,null,null,null,null,0,null,null,0]
["",null,null,null,null,null,null,0,null,null,0]
["",null,null,null,null,null,null,0,null,null,0]
["",null,null,null,null,null,null,0,null,null,0]
["",null,null,null,null,null,null,0,null,null,0]
["",null,null,null,null,null,null,0,null,null,0]
["",null,null,null,null,null,null,0,null,null,0]
["",null,null,null,null,null,null,0,null,null,0]
["",null,null,null,null,null,null,0,null,null,0]
["",null,null,null,null,null,null,0,null,null,0]
["",null,null,null,null,null,null,0,null,null,0]
["",null,null,null,null,null,null,0,null,null,0]
["",null,null,null,null,null,null,0,null,null,0]
["",null,null,null,null,null,null,0,null,null,0]
["",null,null,null,null,null,null,0,null,null,0]
["",null,null,null,null,null,null,0,null,null,0]
["",null,null,null,null,null,null,0,null,null,0]
["",null,null,null,null,null,null,0,null,null,0]
["",null,null,null,null,null,null,0,null,null,0]
["",null,null,null,null,null,null,0,null,null,0]
["",null,null,null,null,null,null,0,null,null,0]
["",null,null,null,null,null,null,0,null,null,0]
["",null,null,null,null,null,null,0,null,null,0]
["",null,null,null,null,null,null,0,null,null,0]
["",null,null,null,null,null,null,0,null,null,0]
["",null,null,null,null,null,null,0,null,null,0]
["",null,null,null,null,null,null,0,null,null,0]
["",null,null,null,null,null,null,0,null,null,0]
["",null,null,null,null,null,null,0,null,null,0]
["",null,null,null,null,null,null,0,null,null,0]
["",null,null,null,null,null,null,0,null,null,0]
["",null,null,null,null,null,null,0,null,null,0]
["",null,null,null,null,null,null,0,null,null,0]
["",null,null,null,null,null,null,0,null,null,0]
["",null,null,null,null,null,null,0,null,null,0]
["",null,null,null,null,null,null,0,null,null,0]
["",null,null,null,null,null,null,0,null,null,0]
["",null,null,null,null,null,null,0,null,null,0]
["",null,null,null,null,null,null,0,null,null,0]
["",null,null,null,null,null,null,0,null,null,0]
["",null,null,null,null,null,null,0,null,null,0]
["",null,null,null,null,null,null,0,null,null,0]
["",null,null,null,null,null,null,0,null,null,0]
["",null,null,null,null,null,null,0,null,null,0]
["",null,null,null,null,null,null,0,null,null,0]
["",null,null,null,null,null,null,0,null,null,0]
["",null,null,null,null,null,null,0,null,null,0]
["",null,null,null,null,null,null,0,null,null,0]
["",null,null,null,null,null,null,0,null,null,0]
["",null,null,null,null,null,null,0,null,null,0]
["",null,null,null,null,null,null,0,null,null,0]
["",null,null,null,null,null,null,0,null,null,0]
["",null,null,null,null,null,null,0,null,null,0]
["",null,null,null,null,null,null,0,null,null,0]
["",null,null,null,null,null,null,0,null,null,0]
["",null,null,null,null,null,null,0,null,null,0]
[{"$f":"IF(B319=\"\",\"\",ROW()-2)","v":""},null,null,null,null,null,null,{"$f":"G319*F319","v":0},null,null,0]
["",null,null,null,null,null,null,0,null,null,0]
["",null,null,null,null,null,null,0,null,null,{"$f":"H321-I321-J321","v":0}]
["",null,null,null,null,null,null,0,null,null,0]
["",null,null,null,null,null,null,0,null,null,0]
["",null,null,null,null,null,null,0,null,null,0]
["",null,null,null,null,null,null,0,null,null,0]
["",null,null,null,null,null,null,0,null,null,0]
["",null,null,null,null,null,null,0,null,null,0]
["",null,null,null,null,null,null,0,null,null,0]
["",null,null,null,null,null,null,0,null,null,0]
["",null,null,null,null,null,null,0,null,null,0]
["",null,null,null,null,null,null,0,null,null,0]
["",null,null,null,null,null,null,0,null,null,0]
["",null,null,null,null,null,null,0,null,null,0]
["",null,null,null,null,null,null,0,null,null,0]
["",null,null,null,null,null,null,0,null,null,0]
["",null,null,null,null,null,null,0,null,null,0]
["",null,null,null,null,null,null,0,null,null,0]
["",null,null,null,null,null,null,0,null,null,0]
["",null,null,null,null,null,null,0,null,null,0]
["",null,null,null,null,null,null,0,null,null,0]
["",null,null,null,null,null,null,0,null,null,0]
["",null,null,null,null,null,null,0,null,null,0]
["",null,null,null,null,null,null,0,null,null,0]
["",null,null,null,null,null,null,0,null,null,0]
["",null,null,null,null,null,null,0,null,null,0]
["",null,null,null,null,null,null,0,null,null,0]
["",null,null,null,null,null,null,0,null,null,0]
["",null,null,null,null,null,null,0,null,null,0]
["",null,null,null,null,null,null,0,null,null,0]
["",null,null,null,null,null,null,0,null,null,0]
["",null,null,null,null,null,null,0,null,null,0]
["",null,null,null,null,null,null,0,null,null,0]
["",null,null,null,null,null,null,0,null,null,0]
["",null,null,null,null,null,null,0,null,null,0]
["",null,null,null,null,null,null,0,null,null,0]
["",null,null,null,null,null,null,0,null,null,0]
["",null,null,null,null,null,null,0,null,null,0]
["",null,null,null,null,null,null,0,null,null,0]
["",null,null,null,null,null,null,0,null,null,0]
["",null,null,null,null,null,null,0,null,null,0]
["",null,null,null,null,null,null,0,null,null,0]
["",null,null,null,null,null,null,0,null,null,0]
["",null,null,null,null,null,null,0,null,null,0]
["",null,null,null,null,null,null,0,null,null,0]
["",null,null,null,null,null,null,0,null,null,0]
["",null,null,null,null,null,null,0,null,null,0]
["",null,null,null,null,null,null,0,null,null,0]
["",null,null,null,null,null,null,0,null,null,0]
["",null,null,null,null,null,null,0,null,null,0]
["",null,null,null,null,null,null,0,null,null,0]
["",null,null,null,null,null,null,0,null,null,0]
["",null,null,null,null,null,null,0,null,null,0]
["",null,null,null,null,null,null,0,null,null,0]
["",null,null,null,null,null,null,0,null,null,0]
["",null,null,null,null,null,null,0,null,null,0]
["",null,null,null,null,null,null,0,null,null,0]
["",null,null,null,null,null,null,0,null,null,0]
["",null,null,null,null,null,null,0,null,null,0]
["",null,null,null,null,null,null,0,null,null,0]
["",null,null,null,null,null,null,0,null,null,0]
["",null,null,null,null,null,null,0,null,null,0]
["",null,null,null,null,null,null,0,null,null,0]
[{"$f":"IF(B383=\"\",\"\",ROW()-2)","v":""},null,null,null,null,null,null,{"$f":"G383*F383","v":0},null,null,0]
["",null,null,null,null,null,null,0,null,null,0]
["",null,null,null,null,null,null,0,null,null,{"$f":"H385-I385-J385","v":0}]
["",null,null,null,null,null,null,0,null,null,0]
["",null,null,null,null,null,null,0,null,null,0]
["",null,null,null,null,null,null,0,null,null,0]
["",null,null,null,null,null,null,0,null,null,0]
["",null,null,null,null,null,null,0,null,null,0]
["",null,null,null,null,null,null,0,null,null,0]
["",null,null,null,null,null,null,0,null,null,0]
["",null,null,null,null,null,null,0,null,null,0]
["",null,null,null,null,null,null,0,null,null,0]
["",null,null,null,null,null,null,0,null,null,0]
["",null,null,null,null,null,null,0,null,null,0]
["",null,null,null,null,null,null,0,null,null,0]
["",null,null,null,null,null,null,0,null,null,0]
["",null,null,null,null,null,null,0,null,null,0]
["",null,null,null,null,null,null,0,null,null,0]
["",null,null,null,null,null,null,0,null,null,0]
["",null,null,null,null,null,null,0,null,null,0]
["",null,null,null,null,null,null,0,null,null,0]
["",null,null,null,null,null,null,0,null,null,0]
["",null,null,null,null,null,null,0,null,null,0]
["",null,null,null,null,null,null,0,null,null,0]
["",null,null,null,null,null,null,0,null,null,0]
["",null,null,null,null,null,null,0,null,null,0]
["",null,null,null,null,null,null,0,null,null,0]
["",null,null,null,null,null,null,0,null,null,0]
["",null,null,null,null,null,null,0,null,null,0]
["",null,null,null,null,null,null,0,null,null,0]
["",null,null,null,null,null,null,0,null,null,0]
["",null,null,null,null,null,null,0,null,null,0]
["",null,null,null,null,null,null,0,null,null,0]
["",null,null,null,null,null,null,0,null,null,0]
["",null,null,null,null,null,null,0,null,null,0]
["",null,null,null,null,null,null,0,null,null,0]
["",null,null,null,null,null,null,0,null,null,0]
["",null,null,null,null,null,null,0,null,null,0]
["",null,null,null,null,null,null,0,null,null,0]
["",null,null,null,null,null,null,0,null,null,0]
["",null,null,null,null,null,null,0,null,null,0]
["",null,null,null,null,null,null,0,null,null,0]
["",null,null,null,null,null,null,0,null,null,0]
["",null,null,null,null,null,null,0,null,null,0]
["",null,null,null,null,null,null,0,null,null,0]
["",null,null,null,null,null,null,0,null,null,0]
["",null,null,null,null,null,null,0,null,null,0]
["",null,null,null,null,null,null,0,null,null,0]
["",null,null,null,null,null,null,0,null,null,0]
["",null,null,null,null,null,null,0,null,null,0]
["",null,null,null,null,null,null,0,null,null,0]
["",null,null,null,null,null,null,0,null,null,0]
["",null,null,null,null,null,null,0,null,null,0]
["",null,null,null,null,null,null,0,null,null,0]
["",null,null,null,null,null,null,0,null,null,0]
["",null,null,null,null,null,null,0,null,null,0]
["",null,null,null,null,null,null,0,null,null,0]
["",null,null,null,null,null,null,0,null,null,0]
["",null,null,null,null,null,null,0,null,null,0]
["",null,null,null,null,null,null,0,null,null,0]
["",null,null,null,null,null,null,0,null,null,0]
["",null,null,null,null,null,null,0,null,null,0]
["",null,null,null,null,null,null,0,null,null,0]
["",null,null,null,null,null,null,0,null,null,0]
[{"$f":"IF(B447=\"\",\"\",ROW()-2)","v":""},null,null,null,null,null,null,{"$f":"G447*F447","v":0},null,null,0]
["",null,null,null,null,null,null,0,null,null,0]
["",null,null,null,null,null,null,0,null,null,{"$f":"H449-I449-J449","v":0}]
["",null,null,null,null,null,null,0,null,null,0]
["",null,null,null,null,null,null,0,null,null,0]
["",null,null,null,null,null,null,0,null,null,0]
["",null,null,null,null,null,null,0,null,null,0]
["",null,null,null,null,null,null,0,null,null,0]
["",null,null,null,null,null,null,0,null,null,0]
["",null,null,null,null,null,null,0,null,null,0]
["",null,null,null,null,null,null,0,null,null,0]
["",null,null,null,null,null,null,0,null,null,0]
["",null,null,null,null,null,null,0,null,null,0]
["",null,null,null,null,null,null,0,null,null,0]
["",null,null,null,null,null,null,0,null,null,0]
["",null,null,null,null,null,null,0,null,null,0]
["",null,null,null,null,null,null,0,null,null,0]
["",null,null,null,null,null,null,0,null,null,0]
["",null,null,null,null,null,null,0,null,null,0]
["",null,null,null,null,null,null,0,null,null,0]
["",null,null,null,null,null,null,0,null,null,0]
["",null,null,null,null,null,null,0,null,null,0]
["",null,null,null,null,null,null,0,null,null,0]
["",null,null,null,null,null,null,0,null,null,0]
["",null,null,null,null,null,null,0,null,null,0]
["",null,null,null,null,null,null,0,null,null,0]
["",null,null,null,null,null,null,0,null,null,0]
["",null,null,null,null,null,null,0,null,null,0]
["",null,null,null,null,null,null,0,null,null,0]
["",null,null,null,null,null,null,0,null,null,0]
["",null,null,null,null,null,null,0,null,null,0]
["",null,null,null,null,null,null,0,null,null,0]
["",null,null,null,null,null,null,0,null,null,0]
["",null,null,null,null,null,null,0,null,null,0]
["",null,null,null,null,null,null,0,null,null,0]
["",null,null,null,null,null,null,0,null,null,0]
["",null,null,null,null,null,null,0,null,null,0]
["",null,null,null,null,null,null,0,null,null,0]
["",null,null,null,null,null,null,0,null,null,0]
["",null,null,null,null,null,null,0,null,null,0]
["",null,null,null,null,null,null,0,null,null,0]
["",null,null,null,null,null,null,0,null,null,0]
["",null,null,null,null,null,null,0,null,null,0]
["",null,null,null,null,null,null,0,null,null,0]
["",null,null,null,null,null,null,0,null,null,0]
["",null,null,null,null,null,null,0,null,null,0]
["",null,null,null,null,null,null,0,null,null,0]
["",null,null,null,null,null,null,0,null,null,0]
["",null,null,null,null,null,null,0,null,null,0]
["",null,null,null,null,null,null,0,null,null,0]

{"sheet":"Sheet1","index":1,"n_rows":26,"n_cols":23,"rows_kept":26,"cut":false,"hidden":false,"merged":[[3,7,3,8],[1,4,1,10]]}
[]
[]
[]
[null,null,null,null,null,null,"بحث بالاسم",null,null,null,null,null,"امكانية حجز يوم"]
[]
[null,null,null,null,null,"اسم العريس",null,null,"عدد الاشخاص",null,null,null,"دفعات مسدده"]
[]
[null,null,null,null,null,"اسم العروسه",null,null,"سعر الشخص",null,null,null,"المتبقي"]
[]
[null,null,null,null,null,"رقم الهاتف","",null,"اجمالى المبلغ",null,null,null,"القاعه"]
[]
[null,null,null,null,null,"تاريخ الحجز",null,null,"مقدم الحجز",null,null,null,"الخدمه"]
[]
[]
[]
[]
[]
[]
[]
[null,null,null,null,null,null,null,null,null,null,null,null,null,null,null,null,null,null,null,1]
[null,null,null,null,null,null,null,null,null,null,null,null,null,null,null,null,null,null,null,2]
[null,null,null,null,null,null,null,null,null,null,null,null,null,null,null,null,null,null,null,3,null,null,"خدمه"]
[null,null,null,null,null,null,null,null,null,null,null,null,null,null,null,null,null,null,null,4,null,null,"بدون خدمه"]
[null,null,null,null,null,null,null,null,null,null,null,null,null,null,null,null,null,null,null,5]
[null,null,null,null,null,null,null,null,null,null,null,null,null,null,null,null,null,null,null,6]
[null,null,null,null,null,null,null,null,null,null,null,null,null,null,null,null,null,null,null,7]